bitfinex-derivatives/quotes_ETHF0:USTF0_20250115
["timestamp","ask_amount","ask_price","bid_price","bid_amount"]
[1736940789059,4.10940246,3191.4,3190.7,4.683]
[1736940789258,4.10940246,3191.4,3190.7,1.4752]
[1736940791254,3.01910959,3191.2,3190.3,3.2078]
[1736940791456,0.4701,3191.1,3190.3,4.6414]
[1736940791758,3.74039252,3191.1,3190.3,4.6414]
[1736940792474,3.74039252,3191.1,3190.3,7.66050959]
[1736940792762,3.27029252,3191.1,3190.3,7.66050959]
[1736940793560,3.27029252,3191.1,3190.7,3.2078]
[1736940793752,0.9607,3191.4,3190.8,0.4776]
[1736940793957,0.9607,3191.4,3190.9,0.97]
[1736940794156,3.32562141,3191.3,3190.9,0.97]
[1736940794863,6.22690959,3191.0,3189.6,3.2078]
[1736940795161,3.2078,3190.6,3189.9,0.4673]
[1736940795353,3.2078,3190.6,3190.0,40.8]
[1736940795557,3.30011868,3190.5,3190.0,41.2776]
[1736940796159,0.4914,3190.4,3190.0,41.2776]
[1736940797265,0.4914,3190.4,3189.6,3.7105]
[1736940797465,0.4914,3190.4,3189.7,0.9399]
[1736940797658,0.4914,3190.4,3189.8,40.8]
[1736940799266,3.30011868,3190.5,3189.8,40.8]
[1736940800863,0.3136,3189.9,3189.8,40.8]
[1736940801659,3.60611978,3189.9,3188.8,3.2078]
[1736940801855,3.33279959,3188.9,3188.8,3.2078]
[1736940802260,3.01910959,3188.9,3188.5,40.8]
[1736940802464,0.31373,3188.5,3188.4,3.2078]
[1736940802967,0.31373,3188.5,3188.4,44.0078]
[1736940804763,0.78424,3189.0,3188.4,44.0078]
[1736940804959,0.31369,3188.9,3188.8,3.2078]
[1736940805360,4.45397,3189.6,3188.8,8.2078]
[1736940805563,0.31365,3189.3,3189.2,3.2078]
[1736940806871,0.31369,3188.9,3188.8,3.2078]
[1736940808062,0.31369,3188.9,3188.5,1.4442]
[1736940808063,0.31372,3188.6,3188.5,1.4442]
[1736940808761,0.30962859,3188.6,3188.5,1.4442]
[1736940809768,0.30962859,3188.6,3188.5,42.2442]
[1736940809968,0.31371,3188.7,3188.5,47.55793]
[1736940810168,3.2078,3189.2,3188.5,42.55793]
[1736940810169,0.78419,3189.1,3188.5,42.55793]
[1736940810367,0.31372,3188.7,3188.6,1.271]
[1736940811472,0.31372,3188.7,3188.6,1.58472]
[1736940811772,0.31372,3188.7,3188.6,1.271]
[1736940812468,0.31372,3188.7,3188.6,1.58472]
[1736940812763,0.78415,3189.3,3188.6,1.271]
[1736940812963,0.31365,3189.3,3189.2,3.2078]
[1736940813771,0.31365,3189.3,3189.2,3.52146]
[1736940814369,0.31365,3189.3,3189.2,3.2078]
[1736940814561,0.31365,3189.3,3189.2,3.52146]
[1736940814868,0.31365,3189.3,3189.2,3.2078]
[1736940820167,0.31365,3189.3,3189.2,4.1642]
[1736940820665,1.28018,3189.6,3189.2,4.1642]
[1736940820666,0.31365,3189.4,3189.3,0.31365]
[1736940820870,0.31365,3189.4,3189.3,0.77795]
[1736940822169,0.31364,3189.5,3189.4,0.31364]
[1736940822368,0.31364,3189.4,3189.3,0.77795]
[1736940822568,1.2615,3189.9,3189.3,0.4643]
[1736940822765,0.31364,3189.5,3189.4,0.31364]
[1736940822978,0.31364,3189.4,3189.3,0.77795]
[1736940823375,0.31364,3189.5,3189.4,0.31363]
[1736940823778,0.31364,3189.4,3189.3,0.77795]
[1736940824679,0.31364,3189.4,3189.3,3.6721]
[1736940824879,0.31364,3189.4,3189.3,3.98575]
[1736940825075,0.31364,3189.5,3189.4,0.31363]
[1736940825278,0.9685,3190.1,3189.3,3.6721]
[1736940825476,0.31364,3189.6,3189.5,0.31362]
[1736940826078,0.9685,3190.1,3189.8,0.31359]
[1736940826079,0.3136,3189.9,3189.8,0.31359]
[1736940826273,0.3136,3189.9,3189.8,3.5214]
[1736940826476,0.31359,3190.0,3189.9,0.31359]
[1736940826676,3.01910959,3190.6,3189.8,3.2078]
[1736940826877,0.4589,3190.5,3190.2,3.2078]
[1736940827080,0.31356,3190.3,3190.2,3.52136]
[1736940827281,0.31356,3190.3,3190.2,3.2078]
[1736940828883,3.01910959,3190.3,3189.8,3.2078]
[1736940829187,0.31359,3189.9,3189.8,3.2078]
[1736940830873,0.76909,3189.9,3189.8,3.2078]
[1736940833179,0.4555,3189.9,3189.8,3.2078]
[1736940833889,0.76909,3189.9,3189.8,3.2078]
[1736940834888,0.4555,3189.9,3189.8,3.2078]
[1736940835076,0.4555,3189.9,3189.8,3.5214]
[1736940835586,0.9731,3190.2,3189.8,3.2078]
[1736940835787,0.31358,3190.1,3189.9,0.80139]
[1736940835992,0.4951,3190.2,3189.9,0.4878]
[1736940835993,0.31357,3190.2,3189.9,0.4878]
[1736940836187,0.4629,3190.3,3190.0,0.4995]
[1736940836384,0.31358,3190.0,3189.8,3.2078]
[1736940836590,0.31359,3189.9,3189.8,3.2078]
[1736940839497,2.80762652,3189.9,3189.8,3.2078]
[1736940841895,0.31359,3189.9,3189.8,3.2078]
[1736940842096,0.4833,3190.1,3189.8,3.2078]
[1736940842290,0.31358,3190.1,3189.9,0.31359]
[1736940842497,0.31356,3190.2,3190.0,0.31358]
[1736940842800,0.4629,3190.3,3190.1,40.8]
[1736940843002,0.77646,3190.3,3190.2,3.2078]
[1736940843195,0.31356,3190.3,3190.2,3.2078]
[1736940843800,0.4646,3190.6,3190.2,3.2078]
[1736940843998,0.31355,3190.4,3190.2,3.2078]
[1736940844193,0.31355,3190.4,3190.2,3.52136]
[1736940844591,0.31356,3190.3,3190.2,3.52136]
[1736940845105,0.31355,3190.4,3190.2,3.52136]
[1736940845399,0.4649,3190.8,3190.2,3.2078]
[1736940845696,0.77841,3190.8,3190.7,3.2078]
[1736940845901,0.31351,3190.8,3190.7,3.2078]
[1736940846104,0.3135,3191.0,3190.7,3.2078]
[1736940846396,3.2078,3191.2,3190.8,0.4842]
[1736940846603,0.31347,3191.2,3191.0,0.31349]
[1736940846793,0.9812,3191.4,3190.9,0.4858]
[1736940846997,5.70183652,3191.8,3190.9,0.4858]
[1736940847296,3.48339062,3191.6,3191.3,3.2078]
[1736940847496,3.79682062,3191.6,3191.4,0.81294]
[1736940847709,0.31343,3191.6,3191.5,0.4867]
[1736940851512,2.49403652,3192.1,3191.4,0.4995]
[1736940851513,0.31344,3191.5,3191.4,0.4995]
[1736940851810,2.49403652,3192.1,3191.4,0.4995]
[1736940852009,0.31343,3191.6,3191.5,0.31343]
[1736940852512,0.78347,3192.1,3191.4,0.4995]
[1736940852805,0.31343,3191.6,3191.5,0.31343]
[1736940853015,0.31341,3191.8,3191.7,0.31341]
[1736940853312,3.5121765,3192.2,3191.4,0.4995]
[1736940853512,0.31342,3191.8,3191.4,0.4995]
[1736940853816,0.31342,3191.8,3191.7,0.31342]
[1736940854007,4.2956165,3192.2,3191.4,0.4995]
[1736940854208,0.31342,3191.8,3191.6,0.31342]
[1736940854610,0.31342,3191.8,3191.7,0.31342]
[1736940854916,0.78332,3192.7,3191.7,3.2078]
[1736940855209,0.9521,3192.6,3191.8,2.99113652]
[1736940855409,0.31335,3192.4,3192.2,3.52116]
[1736940855615,0.9521,3192.6,3192.3,0.9592]
[1736940856014,0.4784,3193.0,3192.3,0.9592]
[1736940856309,0.3133,3192.9,3192.3,0.9592]
[1736940856509,1.26165,3193.0,3192.3,1.27256]
[1736940856712,0.30056414,3192.6,3192.3,0.9592]
[1736940857020,0.9521,3193.1,3192.3,0.9592]
[1736940857312,0.9521,3193.1,3192.7,0.01277586]
[1736940857513,0.31331,3192.8,3192.7,0.01277586]
[1736940857708,0.3133,3192.9,3192.7,0.32609586]
[1736940857916,0.9521,3193.1,3192.3,0.9592]
[1736940858111,0.3133,3192.9,3192.7,0.31331]
[1736940858416,0.3133,3192.9,3192.8,0.01277586]
[1736940858712,0.9521,3193.1,3192.8,0.01277586]
[1736940858913,0.3133,3193.0,3192.8,0.01277586]
[1736940859114,0.9521,3193.1,3192.9,0.02555172]
[1736940859308,0.23223782,3193.7,3192.9,0.02555172]
[1736940859515,0.31325,3193.4,3193.1,0.31328]
[1736940859817,0.9526,3193.6,3193.2,0.03832758]
[1736940860113,0.9526,3193.6,3193.2,3.24612758]
[1736940860310,0.31325,3193.5,3193.4,0.05110344]
[1736940860514,1.26583,3193.6,3193.4,0.36435344]
[1736940860716,0.3132,3193.9,3193.5,0.31323]
[1736940860917,0.9811,3194.0,3193.5,0.31323]
[1736940861113,0.31322,3193.8,3193.6,0.31323]
[1736940861415,3.2078,3194.5,3193.7,3.25890344]
[1736940861609,0.31319,3194.1,3193.7,4.19970344]
[1736940861810,3.2078,3194.5,3193.9,0.3132]
[1736940862107,3.2078,3194.5,3193.8,43.76863652]
[1736940862313,0.4766,3194.4,3194.1,0.05110344]
[1736940862513,0.31317,3194.2,3194.1,0.05110344]
[1736940863913,0.31315,3194.4,3194.2,0.31317]
[1736940864218,3.2078,3194.5,3194.1,40.85110344]
[1736940864219,0.31316,3194.3,3194.1,40.85110344]
[1736940864511,0.31316,3194.3,3194.2,0.05110344]
[1736940865815,0.31315,3194.4,3194.2,0.36427344]
[1736940866018,0.31315,3194.4,3194.2,0.05110344]
[1736940866518,0.31315,3194.4,3194.3,0.05110344]
[1736940866712,0.31314,3194.6,3194.3,0.36426344]
[1736940866914,0.4766,3194.7,3194.5,3.2078]
[1736940867115,0.31314,3194.6,3194.5,3.2078]
[1736940867616,0.4766,3194.7,3194.5,3.2078]
[1736940867617,0.78973,3194.7,3194.5,3.25890344]
[1736940867918,0.4552,3194.8,3194.5,3.25890344]
[1736940867919,3.2078,3195.4,3194.5,3.25890344]
[1736940868119,0.5037,3195.2,3194.5,3.74900344]
[1736940868521,0.5037,3195.2,3194.8,0.05110344]
[1736940868720,0.31308,3195.1,3194.8,0.05110344]
[1736940869020,0.5037,3195.2,3194.8,0.05110344]
[1736940869316,0.31308,3195.1,3194.8,0.05110344]
[1736940869513,0.3131,3195.0,3194.9,0.05110344]
[1736940870114,0.5037,3195.2,3194.9,0.05110344]
[1736940870316,0.31309,3195.0,3194.9,0.05110344]
[1736940870511,0.5037,3195.2,3194.9,0.05110344]
[1736940870719,0.31308,3195.1,3194.9,0.05110344]
[1736940870918,0.31308,3195.1,3195.0,3.2078]
[1736940871618,0.31308,3195.1,3195.0,3.25890344]
[1736940872018,0.54353578,3195.1,3195.0,3.25890344]
[1736940873016,0.23045578,3195.1,3195.0,3.25890344]
[1736940873714,0.5037,3195.2,3195.0,3.25890344]
[1736940874020,0.81678,3195.2,3195.0,3.57199344]
[1736940874323,0.81678,3195.2,3195.0,3.25890344]
[1736940874522,0.81678,3195.2,3195.1,0.05110344]
[1736940874821,0.5037,3195.2,3195.1,0.05110344]
[1736940875210,0.31306,3195.4,3195.1,0.36418344]
[1736940875618,0.31306,3195.4,3195.2,0.05110344]
[1736940876226,0.31305,3195.5,3195.2,0.36417344]
[1736940876523,0.31306,3195.3,3195.2,0.05110344]
[1736940876816,0.4709,3195.6,3195.2,0.05110344]
[1736940877020,0.4898,3196.0,3195.5,3.2078]
[1736940877216,0.4898,3196.0,3195.6,0.31303]
[1736940877217,0.31301,3195.9,3195.6,0.31303]
[1736940877417,0.31302,3195.8,3195.6,0.31303]
[1736940877623,0.31302,3195.8,3195.7,0.05110344]
[1736940878326,0.31301,3195.9,3195.7,0.05110344]
[1736940878521,0.4709,3196.0,3195.7,0.05110344]
[1736940878722,0.26191656,3195.8,3195.7,0.31302]
[1736940878922,0.31303,3195.7,3195.6,0.31303]
[1736940879420,0.4709,3196.0,3195.5,44.0078]
[1736940879729,0.31304,3195.6,3195.5,3.2078]
[1736940880020,0.31302,3195.8,3195.5,3.2078]
[1736940880225,0.4709,3196.0,3195.5,3.2078]
[1736940880421,0.31304,3195.6,3195.5,3.2078]
[1736940880721,0.31303,3195.7,3195.5,3.52084]
[1736940881125,0.4709,3196.0,3195.5,3.2078]
[1736940881322,0.31304,3195.6,3195.5,3.2078]
[1736940881825,0.31304,3195.6,3195.5,3.52085]
[1736940882323,0.31304,3195.6,3195.5,3.2078]
[1736940885825,0.31304,3195.6,3195.5,3.52085]
[1736940886419,0.31303,3195.7,3195.6,0.31303]
[1736940886922,0.00495275,3195.8,3195.5,3.2078]
[1736940886923,0.31304,3195.6,3195.5,3.52084]
[1736940887223,0.00495275,3195.8,3195.7,0.31303]
[1736940887426,0.31296,3196.4,3196.3,0.31296]
[1736940887623,0.31296,3196.4,3196.3,46.49286312]
[1736940887827,0.31296,3196.4,3196.3,46.80583312]
[1736940888129,0.31295,3196.6,3196.5,0.31294]
[1736940888425,0.9757,3197.1,3196.3,46.49286312]
[1736940888622,0.31292,3196.8,3196.7,3.22054244]
[1736940889423,0.31292,3196.8,3196.7,3.23328488]
[1736940890027,2.79798312,3196.8,3196.7,0.03822732]
[1736940890223,6.11683674,3196.8,3196.7,0.03822732]
[1736940890530,6.11683674,3196.8,3196.7,0.05096976]
[1736940891029,0.313,3196.0,3195.9,40.8]
[1736940891330,0.313,3196.0,3195.8,3.2078]
[1736940891331,0.31301,3195.9,3195.8,3.2078]
[1736940891628,0.31301,3195.9,3195.8,44.0078]
[1736940892821,0.31301,3195.9,3195.8,44.02044934]
[1736940893624,0.31301,3195.9,3195.8,44.03309868]
[1736940894826,0.4824,3196.1,3195.8,44.03309868]
[1736940895028,0.4824,3196.1,3195.8,44.04574802]
[1736940895330,0.31301,3195.9,3195.8,44.04574802]
[1736940895531,0.313,3196.0,3195.9,0.313]
[1736940895830,0.31301,3195.9,3195.8,44.35875802]
[1736940896030,0.26241264,3195.9,3195.8,44.0078]
[1736940896537,0.26241264,3195.9,3195.8,44.02044934]
[1736940896929,0.31301,3195.9,3195.8,44.32081]
[1736940897132,0.31301,3195.9,3195.8,44.50309868]
[1736940897629,0.31301,3195.9,3195.8,44.51574802]
[1736940898132,0.31301,3195.9,3195.8,44.52839736]
[1736940898328,0.4824,3196.1,3195.8,44.52839736]
[1736940898525,1.25848,3196.5,3195.8,44.52839736]
[1736940898722,0.31297,3196.3,3196.2,3.2078]
[1736940899130,0.31297,3196.3,3196.2,3.72489736]
[1736940899841,0.31297,3196.3,3196.2,3.25839736]
[1736940900436,3.60199816,3196.3,3196.2,3.25839736]
[1736940900832,4.06889816,3196.3,3196.2,3.25839736]
[1736940901435,3.60199816,3196.3,3196.2,3.27101997]
[1736940901627,4.06889816,3196.3,3196.2,3.27101997]
[1736940902738,4.06889816,3196.3,3196.2,3.28364258]
[1736940903739,4.06889816,3196.3,3196.2,3.29626519]
[1736940904542,4.06889816,3196.3,3196.2,0.08846519]
[1736940905838,4.06889816,3196.3,3196.2,0.1010878]
[1736940906441,4.06889816,3196.3,3196.2,0.11371041]
[1736940907039,0.31304,3195.6,3195.5,40.8]
[1736940908844,0.4862,3196.0,3195.5,43.28506312]
[1736940909147,0.31302,3195.8,3195.7,0.31303]
[1736940909338,0.31302,3195.8,3195.7,3.2078]
[1736940912745,6.22443562,3195.8,3195.7,3.2078]
[1736940914951,3.7393725,3195.8,3195.7,3.2078]
[1736940915250,0.31302,3195.8,3195.7,3.2078]
[1736940915645,3.9260998,3195.8,3195.7,3.2078]
[1736940916747,0.31304,3195.6,3195.5,40.8]
[1736940917452,0.78714,3195.6,3195.5,40.8]
[1736940918955,0.4741,3195.6,3195.1,3.2078]
[1736940919252,0.31307,3195.2,3195.1,3.2078]
[1736940919445,0.31307,3195.2,3195.1,44.0078]
[1736940919959,3.79805708,3195.2,3195.1,3.2078]
[1736940922853,3.79805708,3195.2,3194.7,0.4858]
[1736940922854,5.9700502,3195.2,3194.7,3.2078]
[1736940923051,0.31311,3194.8,3194.7,3.2078]
[1736940923449,3.94322843,3194.8,3194.7,3.2078]
[1736940925053,0.31314,3194.5,3194.4,0.4566]
[1736940927553,0.31314,3194.5,3194.3,0.4774]
[1736940927758,0.31314,3194.5,3193.7,1.274]
[1736940927759,3.35569415,3194.5,3193.6,3.2078]
[1736940927958,0.31322,3193.7,3193.6,3.2078]
[1736940928153,0.31322,3193.7,3193.6,44.0078]
[1736940930457,0.31322,3193.7,3193.6,3.2078]
[1736940931354,0.31323,3193.6,3193.5,40.8]
[1736940931555,0.31327,3193.2,3193.1,3.2078]
[1736940931751,0.31327,3193.2,3193.1,5.69286312]
[1736940932053,0.31327,3193.2,3193.1,46.49286312]
[1736940933858,0.31327,3193.2,3193.1,44.0078]
[1736940934162,0.31329,3193.0,3192.9,1.4536]
[1736940934353,0.31329,3193.0,3192.9,0.955]
[1736940934656,0.31329,3193.0,3192.9,41.755]
[1736940934851,0.31329,3193.0,3192.9,0.955]
[1736940935051,0.4971,3193.2,3192.6,3.2078]
[1736940935253,0.31332,3192.7,3192.6,3.2078]
[1736940935960,0.31332,3192.7,3192.2,41.2882]
[1736940935961,6.00742372,3192.7,3192.2,0.4882]
[1736940936165,0.31337,3192.2,3192.1,0.4697]
[1736940939880,0.31337,3192.2,3192.1,41.2697]
[1736940944079,0.31333,3192.7,3192.4,0.31335]
[1736940944381,0.31331,3192.9,3192.6,2.79839312]
[1736940944576,3.2078,3193.0,3192.6,2.79839312]
[1736940944577,0.3133,3193.0,3192.7,0.77851]
[1736940944778,0.31328,3193.2,3192.9,6.00615312]
[1736940944983,0.31324,3193.5,3193.0,0.31329]
[1736940945282,0.31327,3193.2,3193.0,0.31329]
[1736940945486,0.31327,3193.2,3193.1,41.2615]
[1736940947375,0.31327,3193.3,3193.2,0.31327]
[1736940947581,0.31324,3193.6,3193.4,0.31325]
[1736940947787,0.78292,3194.3,3193.5,6.16936312]
[1736940947984,0.78292,3194.3,3193.9,3.2078]
[1736940948186,0.31319,3194.0,3193.9,3.2078]
[1736940950287,0.31316,3194.4,3194.0,0.31319]
[1736940950495,0.31316,3194.4,3194.1,2.79824312]
[1736940950787,0.78278,3194.9,3194.2,0.4977]
[1736940950988,0.31316,3194.3,3194.2,0.4977]
[1736940951491,0.31316,3194.3,3194.2,41.2977]
[1736940952990,0.31316,3194.3,3194.2,0.4977]
[1736940955691,0.78279,3194.8,3194.2,0.81086]
[1736940955892,0.31313,3194.6,3194.5,3.2078]
[1736940958295,3.4005233,3194.8,3194.5,3.2078]
[1736940958492,0.31313,3194.6,3194.5,3.2078]
[1736940959093,0.31313,3194.6,3194.5,44.0078]
[1736940960298,0.31313,3194.6,3194.5,3.2078]
[1736940961091,0.31312,3194.8,3194.5,3.52094]
[1736940961288,0.4694,3195.4,3194.7,2.48506312]
[1736940961602,0.31308,3195.1,3195.0,3.2078]
[1736940963801,3.37127779,3195.1,3194.6,3.2078]
[1736940963994,0.31312,3194.7,3194.6,3.2078]
[1736940964896,0.31312,3194.8,3194.6,3.52093]
[1736940965100,0.31311,3194.9,3194.7,3.77768312]
[1736940965296,0.4946,3195.3,3194.7,3.77768312]
[1736940965297,0.31311,3194.8,3194.7,3.94516312]
[1736940965604,1.27728,3195.3,3194.7,3.94516312]
[1736940965900,0.31311,3194.9,3194.7,4.25828312]
[1736940966097,0.31307,3195.3,3195.1,0.31308]
[1736940966293,0.4841,3195.7,3195.3,0.31306]
[1736940966498,0.31305,3195.5,3195.4,0.9768]
[1736940966800,0.31304,3195.6,3195.4,4.1846]
[1736940966997,0.31305,3195.5,3195.4,4.1846]
[1736940967505,0.31305,3195.5,3195.4,3.2078]
[1736940968297,0.9704,3195.7,3195.4,3.2078]
[1736940968298,0.4841,3195.7,3195.4,3.2078]
[1736940968595,3.99031,3196.0,3195.4,3.2078]
[1736940968801,0.31305,3195.5,3195.4,3.2078]
[1736940970604,0.31305,3195.5,3195.4,44.0078]
[1736940970999,0.31305,3195.5,3195.4,44.32086]
[1736940971201,0.4841,3195.9,3195.4,44.32086]
[1736940971402,0.4841,3195.9,3195.5,0.9504]
[1736940971596,0.31304,3195.6,3195.5,0.9504]
[1736940972098,0.31304,3195.6,3195.5,1.26345]
[1736940972803,0.31304,3195.6,3195.5,0.9504]
[1736940973005,0.31304,3195.6,3195.5,1.26345]
[1736940973903,0.31304,3195.6,3195.5,0.9504]
[1736940974100,0.31304,3195.6,3195.5,1.26344]
[1736940975001,0.4863,3196.2,3195.6,0.7826]
[1736940975203,0.4604,3196.7,3196.0,5.69286312]
[1736940975407,3.2078,3196.8,3196.3,2.48506312]
[1736940975706,0.31296,3196.4,3196.3,2.48506312]
[1736940975904,0.31296,3196.4,3196.3,43.28506312]
[1736940976203,0.31292,3196.8,3196.7,0.31293]
[1736940976396,0.31292,3196.8,3196.7,3.52073]
[1736940977006,0.9728,3197.2,3196.7,3.52073]
[1736940977406,0.31291,3196.9,3196.7,3.52073]
[1736940977601,0.25709475,3198.5,3196.8,0.4543]
[1736940977907,0.31286,3197.4,3197.3,3.2078]
[1736940979109,0.5033,3197.8,3197.3,3.2078]
[1736940979306,0.31286,3197.4,3197.3,3.2078]
[1736940988509,0.31285,3197.6,3197.3,3.52067]
[1736940988711,0.5033,3197.8,3197.4,0.31285]
[1736940988908,3.61925545,3197.7,3197.4,0.31285]
[1736940989314,0.31283,3197.7,3197.4,0.31286]
[1736940989812,0.31283,3197.7,3197.5,40.8]
[1736940990215,0.31284,3197.6,3197.5,40.8]
[1736940990915,0.31284,3197.7,3197.5,41.11284]
[1736940991214,0.31284,3197.7,3197.5,40.8]
[1736940991809,0.31282,3197.9,3197.5,40.8]
[1736940992008,0.4686,3198.2,3197.7,2.48506312]
[1736940992221,0.4686,3198.2,3197.7,5.69286312]
[1736940992407,0.4686,3198.2,3198.0,2.48506312]
[1736940992720,0.78138,3198.2,3198.0,2.79785312]
[1736940993417,0.78138,3198.2,3198.1,3.2078]
[1736940993418,0.4686,3198.2,3198.1,3.2078]
[1736940993622,0.9724,3198.5,3198.2,0.31278]
[1736940993623,0.31277,3198.4,3198.2,0.31278]
[1736940993825,0.4799,3198.5,3198.1,3.2078]
[1736940994311,0.4892,3198.8,3198.3,2.48506312]
[1736940994514,1.26162,3199.2,3198.6,5.69286312]
[1736940994819,4.42478071,3199.2,3198.6,5.69286312]
[1736940995118,0.31273,3198.7,3198.6,5.69286312]
[1736940995319,4.42478071,3199.2,3198.7,0.31273]
[1736940995511,0.31272,3198.8,3198.7,0.31273]
[1736940995710,0.31272,3198.9,3198.7,0.31273]
[1736940996409,0.31271,3199.0,3198.6,5.69286312]
[1736940996612,0.31271,3199.0,3198.8,0.31272]
[1736940997414,0.31271,3198.9,3198.8,0.31272]
[1736940997925,0.31272,3198.8,3198.7,41.11273]
[1736940998121,0.31272,3198.8,3198.7,40.8]
[1736940998723,3.39572147,3199.1,3198.6,5.69286312]
[1736940999023,0.31273,3198.7,3198.6,6.00560312]
[1736940999720,0.31273,3198.7,3198.6,5.69286312]
[1736940999930,0.31273,3198.7,3198.6,6.00560312]
[1736941001026,1.75083,3199.2,3198.6,5.69286312]
[1736941001326,0.31272,3198.9,3198.8,0.31271]
[1736941002421,0.9691,3199.2,3198.7,1.269]
[1736941002629,0.31272,3198.8,3198.7,1.58173]
[1736941003028,1.75083,3199.2,3198.7,1.269]
[1736941003234,1.75083,3199.2,3198.8,0.31272]
[1736941003235,0.31272,3198.9,3198.8,0.31272]
[1736941004031,0.31272,3198.8,3198.7,1.269]
[1736941004237,0.31272,3198.8,3198.7,1.58173]
[1736941004631,0.31272,3198.8,3198.7,0.31273]
[1736941004827,0.78163,3199.6,3198.6,6.96186312]
[1736941005033,0.31264,3199.6,3199.5,6.00551312]
[1736941005238,0.9712,3199.7,3199.5,5.69286312]
[1736941005637,0.78854,3199.7,3199.6,0.31264]
[1736941005830,0.4759,3199.7,3199.6,0.31264]
[1736941006033,3.2078,3200.4,3199.6,40.8]
[1736941006232,0.3126,3200.1,3200.0,3.2078]
[1736941006638,3.79270809,3200.1,3200.0,3.2078]
[1736941010139,0.78156,3199.9,3199.5,3.2078]
[1736941010338,0.31264,3199.6,3199.5,3.2078]
[1736941011342,0.31263,3199.8,3199.6,0.31264]
[1736941011533,0.31263,3199.8,3199.5,5.69286312]
[1736941011729,0.31263,3199.8,3199.6,0.31264]
[1736941011936,0.4746,3200.0,3199.5,5.69286312]
[1736941012133,0.31264,3199.7,3199.6,0.31264]
[1736941012334,0.31263,3199.8,3199.6,0.31264]
[1736941012546,0.31263,3199.7,3199.6,0.31264]
[1736941013244,0.31264,3199.6,3199.5,6.00551312]
[1736941013446,0.31264,3199.6,3199.5,5.69286312]
[1736941015046,0.4746,3200.0,3199.5,5.69286312]
[1736941015542,0.31261,3200.0,3199.9,3.2078]
[1736941020737,0.31261,3200.0,3199.5,3.2078]
[1736941020738,0.31264,3199.6,3199.5,3.2078]
[1736941020939,0.78154,3200.0,3199.5,5.69286312]
[1736941021139,0.9699,3200.3,3199.5,5.69286312]
[1736941021440,0.3126,3200.0,3199.9,3.2078]
[1736941023947,0.31264,3199.6,3199.5,3.2078]
[1736941028545,3.76228473,3199.6,3199.5,3.2078]
[1736941029344,3.76228473,3199.6,3199.5,3.19083726]
[1736941029938,0.31271,3198.9,3198.8,44.9594]
[1736941031247,0.3127,3199.0,3198.9,0.31271]
[1736941031552,0.3127,3199.0,3198.9,2.79777312]
[1736941031748,0.3127,3199.0,3198.9,2.48506312]
[1736941032148,1.0043,3199.5,3198.9,2.48506312]
[1736941032349,0.31267,3199.3,3199.2,6.00554312]
[1736941032651,0.31266,3199.5,3199.4,0.31266]
[1736941032851,0.00270098,3199.6,3199.5,0.31265]
[1736941033053,0.00270098,3199.6,3199.5,2.79771312]
[1736941037458,0.4955,3200.5,3199.5,3.26670312]
[1736941037659,0.31258,3200.3,3200.2,2.48506312]
[1736941037856,0.31258,3200.3,3200.2,2.95136312]
[1736941038057,0.31258,3200.3,3200.2,44.06395312]
[1736941038657,0.31258,3200.3,3200.2,43.28506312]
[1736941039558,0.31259,3200.2,3200.1,3.2078]
[1736941041552,0.31258,3200.3,3200.2,0.31258]
[1736941041755,0.31258,3200.3,3200.2,2.79764312]
[1736941041962,0.4955,3200.5,3200.3,0.31257]
[1736941041963,3.81274389,3200.4,3200.3,0.31257]
[1736941042365,0.31258,3200.3,3200.2,2.79764312]
[1736941042565,0.31258,3200.3,3200.2,2.48506312]
[1736941043959,0.4955,3200.5,3200.2,2.48506312]
[1736941044159,0.80806,3200.5,3200.2,2.48506312]
[1736941044358,0.31255,3200.6,3200.5,0.31255]
[1736941044567,0.7813,3200.9,3200.5,0.31255]
[1736941044568,3.2078,3201.8,3200.5,5.69286312]
[1736941044757,0.4657,3201.2,3200.6,0.4908]
[1736941044957,0.4597,3201.1,3200.5,5.69286312]
[1736941045162,0.31255,3200.6,3200.5,5.69286312]
[1736941045463,0.31252,3200.9,3200.7,0.31253]
[1736941045662,0.31251,3201.0,3200.7,0.31253]
[1736941045865,3.41040806,3201.0,3200.7,0.31253]
[1736941046065,0.31252,3200.9,3200.7,0.31254]
[1736941046967,3.41040806,3201.0,3200.5,5.69286312]
[1736941047168,0.31251,3201.0,3200.9,3.2078]
[1736941047769,0.31251,3201.0,3200.9,3.52032]
[1736941047964,0.77221,3201.1,3201.0,0.31251]
[1736941048264,14.05325531,3201.7,3200.9,3.2078]
[1736941048470,0.31248,3201.3,3200.9,3.2078]
[1736941048662,3.73373249,3201.4,3201.2,0.31248]
[1736941048864,0.31248,3201.3,3201.2,0.31248]
[1736941049070,0.4722,3201.5,3201.0,41.1125]
[1736941049368,0.31249,3201.2,3201.1,0.31249]
[1736941049566,0.4722,3201.5,3201.1,0.31249]
[1736941049763,0.31248,3201.3,3201.2,0.31249]
[1736941049963,0.4722,3201.5,3201.1,2.48506312]
[1736941050176,0.31247,3201.4,3201.3,3.52027]
[1736941050573,0.31247,3201.4,3201.3,3.2078]
[1736941050872,0.31247,3201.4,3201.3,3.52028]
[1736941051059,0.31247,3201.4,3201.3,3.2078]
[1736941051272,0.31247,3201.4,3201.3,3.52028]
[1736941051769,0.31247,3201.4,3201.3,3.2078]
[1736941053966,3.93199063,3201.4,3201.3,3.2078]
[1736941054173,4.41229063,3201.4,3201.3,3.2078]
[1736941055370,0.31251,3201.0,3200.9,41.11251]
[1736941055768,0.31251,3201.0,3200.9,40.8]
[1736941055968,0.31251,3201.0,3200.9,41.11252]
[1736941056370,0.31251,3201.0,3200.9,40.8]
[1736941058175,6.73897587,3201.0,3200.3,3.2078]